Cogmind - Beta 16 @@@ ROGUE MODE // 2025.12.11 @ 03:25:51 Player: Parkagirl Result: Destroyed by TE-OKB(R) with Subdweller Machine Gun Performance ------------- Evolutions (0) 0 Regions Visited (3) 600 Robots Destroyed (13) 65 Value Destroyed (367) 367 Prototype IDs (1) 20 Alien Tech Used (0) 0 Bonus (0) 0 TOTAL SCORE: 1052 Bonus ------- None Cogmind --------- Core Integrity 0/250 Matter 282/300 Energy 99/100 System Corruption 0% Temperature Cool (0) Movement Core (150) Ox2 Location -10/Subcaves Parts ------- > --- POWER (1) -------- (None) > --- PROPULSION (2) --- (None) > --- UTILITY (2) ------ Improved Heat Sink Small Storage Unit > --- WEAPON (2) ------- Light Cannon > --- INVENTORY (8) ---- Light Ion Engine Light Nuclear Core Aluminum Leg Small Laser Peak State ------------ > --- POWER ------------ Light Ion Engine > --- PROPULSION ------- Light Treads Light Treads > --- UTILITY ---------- Small Storage Unit Experimental Sensor Array > --- WEAPON ----------- Particle Gun Light Assault Rifle > --- INVENTORY -------- Light Nuclear Core Aluminum Leg Aluminum Leg Aluminum Leg Small Laser Assault Rifle Light Cannon Rocket Launcher [Rating: 17] Favorites ----------- Power Light Ion Engine Engine Light Ion Engine Propulsion Aluminum Leg Treads Light Treads Leg Aluminum Leg Utility Small Storage Unit Device Experimental Sensor Array Storage Small Storage Unit Weapon Light Assault Rifle Energy Gun Particle Gun Ballistic Gun Light Assault Rifle Ballistic Cannon Light Cannon Launcher Rocket Launcher Build | -11 -10 -10 -10 ------- Run | Yrd Mat Min Sub Slots Evolved . | . . . . Power . | . . . . Propulsion . | . . . . Utility . | . . . . Weapon . | . . . . Parts Attached 22 | 6 1 11 4 Power 2 | 1 . 1 . Engine 2 | 1 . 1 . Core . | . . . . Reactor . | . . . . Propulsion 7 | 2 . 3 2 Treads 2 | . . 2 . Leg 5 | 2 . 1 2 Wheel . | . . . . Hover . | . . . . Flight . | . . . . Utility 6 | 1 1 3 1 Device 5 | . 1 3 1 Storage 1 | 1 . . . Processor . | . . . . Hackware . | . . . . Protection . | . . . . Artifact . | . . . . Weapon 7 | 2 . 4 1 Energy Gun 2 | . . 2 . Energy Cannon . | . . . . Ballistic Gun 3 | 2 . 1 . Ballistic Cannon 1 | . . . 1 Launcher 1 | . . 1 . Special Weapon . | . . . . Impact Weapon . | . . . . Slashing Weapon . | . . . . Piercing Weapon . | . . . . Special Melee Weapon . | . . . . Unidentified Prototypes 1 | . . 1 . Parts Lost 14 | . 1 5 8 Power 2 | . . 1 1 Propulsion 4 | . . . 4 Utility 3 | . 1 1 1 Weapon 5 | . . 3 2 Highest Loss Streak 7 | . 1 2 7 To Critical Strikes . | . . . . Average Backups 6 | 3 6 7 6 Power . | . 1 . 2 Propulsion 3 | 2 3 3 2 Utility . | . . . . Weapon 2 | . 1 3 1 Tool/Special . | . . . . Unused Backups 7 | . 3 1 3 Power 2 | . . . 2 Propulsion 5 | . 3 1 1 Utility . | . . . . Weapon . | . . . . Tool/Special . | . . . . Average Slot Usage (%) 93 | . 97 93 76 Engine 13 | . 14 13 8 Treads 12 | . . 15 15 Leg 14 | . 28 12 5 Device 9 | . 11 9 8 Storage 14 | . 14 14 14 Energy Gun 4 | . . 6 . Ballistic Gun 20 | . 28 19 9 Launcher 1 | . . . 8 Peak Build Rating 17 | 6 7 17 17 Average Rating 9 | 4 6 10 8 On Entrance 7 | . 6 6 17 Avg Prop Armor Cover (%) . | . . . . Naked Turns . | . . . . Heaviest Build 15 | 11 12 15 15 Greatest Support 40 | 20 20 40 40 Greatest Overweight (x) 4 | 1 . . 4 Average Overweight (x) . | . . . . Largest Inventory Capacity 8 | 8 8 8 8 Average Capacity 7 | 7 8 8 8 Most Carried 8 | 6 8 8 8 Average Carried 6 | 4 6 7 6 Final Capacity 8 | 8 8 8 8 Final Carried 8 | 6 5 8 4 Class Distribution -------------------- 100% | Mutant Dominant Class ---------------- Mutant | -10/Materials Mutant | -10/Mines Mutant | -10/Subcaves Resources | -11 -10 -10 -10 ----------- Run | Yrd Mat Min Sub Matter Collected 411 | 219 . 184 8 Remotely . | . . . . Salvage Created 417 | . . 417 . Parts 26 | . . 26 . Haulers Intercepted . | . . . . Recyclers Shooed . | . . . . Parts Field Recycled . | . . . . Retrieved Matter . | . . . . Parts Self-Destructed 3 | . . . 3 Prevented . | . . . . Parts Restored . | . . . . Kills | -11 -10 -10 -10 ------- Run | Yrd Mat Min Sub Combat Hostiles Destroyed 11 | . . 11 . Guns 9 | . . 9 . AOE 2 | . . 2 . Classes Destroyed 4 | . . 4 . Tunneler 1 | . . 1 . Recycler 1 | . . 1 . Swarmer 3 | . . 3 . Grunt 8 | . . 8 . Best Kill Streak 3 | . . 3 . Combat Bots Only 3 | . . 3 . Max Kills in Single Turn 2 | . . 2 . Gunslinging . | . . . . Exploded 2 | . . 2 . Melee . | . . . . Uniques/NPCs Destroyed . | . . . . Combat | -11 -10 -10 -10 -------- Run | Yrd Mat Min Sub Hostile Shots Fired 150 | . 46 53 51 Missed 47 | . 23 9 15 Hits 103 | . 23 44 36 Projectile 103 | . 23 44 36 Critical Strikes 1 | . . 1 . Damage Taken 1650 | . 212 658 780 Core 264 | . 17 110 137 Absorbed by Shields . | . . . . Core Remaining (%) 100 | 100 . . . Volleys Fired 40 | . . 40 . Largest 2 | . . 2 . Hottest 85 | . . 85 . Shots Fired 72 | . . 72 . Gun 70 | . . 70 . Cannon . | . . . . Launcher 2 | . . 2 . Special . | . . . . Kinetic 54 | . . 54 . Thermal 16 | . . 16 . Explosive 2 | . . 2 . Electromagnetic . | . . . . Robot Hit Streak 8 | . . 8 . Robot Miss Streak 4 | . . 4 . Penetration Max . | . . . . Secondary Targets 1 | . . 1 . Max Gunslinging Chain 1 | . . 1 . Shots Hit Robots 49 | . . 49 . Core Hits 21 | . . 21 . Critical Kills . | . . . . Critical Parts Destroyed . | . . . . Critical Strikes 1 | . . 1 . Burn 1 | . . 1 . Melee Attacks . | . . . . Impact . | . . . . Slashing . | . . . . Piercing . | . . . . Sneak Attacks . | . . . . Combat Hostiles . | . . . . Follow-up Attacks . | . . . . Damage Inflicted 721 | . 4 717 . Guns 516 | . . 516 . Cannons . | . . . . Explosions 183 | . . 183 . Melee . | . . . . Ramming 22 | . 4 18 . Kinetic 349 | . . 349 . Thermal 167 | . . 167 . Explosive 183 | . . 183 . Electromagnetic . | . . . . Impact . | . . . . Slashing . | . . . . Piercing . | . . . . Highest Corruption . | . . . . Average Corruption . | . . . . Corruption Purged . | . . . . Corruption Blocked . | . . . . Overload Shots . | . . . . Overflow Damage . | . . . . Projectiles . | . . . . Explosions . | . . . . Melee . | . . . . Knockbacks . | . . . . Impact . | . . . . Kinetic . | . . . . Secondary . | . . . . Self-Inflicted Damage 30 | . . 30 . Shots 2 | . . 2 . Rammed 3 | . . 3 . Targets Rammed 10 | . 2 8 . Kicked 5 | . 2 3 . Crushed 2 | . . 2 . Highest Temperature 240 | . . 240 . Average Temperature 68 | . . 68 . Received Heat Transfer 438 | . 66 348 24 Siege Activations . | . . . . Martial Activations . | . . . . Shielding Activations . | . . . . Robots Disrupted . | . . . . Combat Hostiles . | . . . . Robots Corrupted . | . . . . Combat Hostiles . | . . . . Parts Fried . | . . . . Impact Corruptions . | . . . . Robots Melted . | . . . . Combat Hostiles . | . . . . Parts Melted 1 | . . 1 . Heat Transferred 482 | . . 482 . Parts Sabotaged . | . . . . Parts Stolen . | . . . . Parts Stripped . | . . . . Power Chain Reactions . | . . . . Alert | -11 -10 -10 -10 ------- Run | Yrd Mat Min Sub Maximum Alert Level . | . . . . Low Security (%) 100 | 100 100 100 . Level 1 . | . . . . Level 2 . | . . . . Level 3 . | . . . . Level 4 . | . . . . Level 5 . | . . . . High Security . | . . . . Max Security . | . . . . Peak Influence 98 | . . 98 . Initial . | . . . . Average 13 | . . 18 . Influence Increases 311 | . . 311 . Destroy 0b10 Robot/C 220 | . . 220 . Destroy 0b10 Robot/NC 10 | . . 10 . Destroy Leader 50 | . . 50 . Destroy Structure 16 | . . 16 . Lose Combat Pursuer 15 | . . 15 . Influence Decreases 311 | . . 237 74 Entered New Map 39 | . . . 39 Time Decay 220 | . . 200 20 Lost Part 52 | . . 37 15 Squads Dispatched 2 | . 2 . . Investigation 1 | . 1 . . Extermination . | . . . . Reinforcement 1 | . 1 . . Assault . | . . . . Garrison . | . . . . Intercept . | . . . . Searches Triggered . | . . . . Construction Impeded . | . . . . Haulers Reinforced . | . . . . Active Scanning Responses . | . . . . Cargo Convoy Interrupts . | . . . . Stealth | -11 -10 -10 -10 --------- Run | Yrd Mat Min Sub Distress Signals 1 | . 1 . . Communications Jammed . | . . . . Distress Signals . | . . . . Times Spotted 25 | . 7 12 6 Peak Tracking Total 7 | . 7 3 6 Tactical Retreats 1 | . . 1 . Traps | -11 -10 -10 -10 ------- Run | Yrd Mat Min Sub Traps Triggered . | . . . . Indirectly . | . . . . Trap Hack Attempts . | . . . . Triggered . | . . . . Disarmed . | . . . . Reprogrammed . | . . . . Reused . | . . . . Traps Extracted . | . . . . Installed . | . . . . Triggered . | . . . . Machines | -11 -10 -10 -10 ---------- Run | Yrd Mat Min Sub Machines Disabled . | . . . . Max in Single Turn . | . . . . Machines Repaired . | . . . . Machines Dismantled . | . . . . Machines Sabotaged . | . . . . Overloaded Fab Kills . | . . . . Hacking | -11 -10 -10 -10 --------- Run | Yrd Mat Min Sub Machines Accessed 2 | . 2 . . Terminals 1 | . 1 . . Fabricators . | . . . . Repair Stations . | . . . . Recycling Units 1 | . 1 . . Scanalyzers . | . . . . Garrison Access . | . . . . Total Hacks 10 | . 10 . . Successful 8 | . 8 . . Failed 2 | . 2 . . Catastrophic . | . . . . Database Lockouts . | . . . . Manual . | . . . . Terminals 3 | . 3 . . Fabricators . | . . . . Repair Stations . | . . . . Recycling Units 7 | . 7 . . Scanalyzers . | . . . . Garrison Access . | . . . . Terminal Hacks 1 | . 1 . . Repair Station Index 1 | . 1 . . Fabricator Hacks . | . . . . Repair Station Hacks . | . . . . Recycling Unit Hacks 7 | . 7 . . Recycle Component 3 | . 3 . . Process 1 | . 1 . . Report Inventory 1 | . 1 . . Retrieve Matter 2 | . 2 . . Scanalyzer . | . . . . Garrison Access Hacks . | . . . . Unauthorized Hacks . | . . . . Terminals . | . . . . Fabricators . | . . . . Repair Stations . | . . . . Recycling Units . | . . . . Scanalyzers . | . . . . Garrison Access . | . . . . Data Cores Recovered . | . . . . Used . | . . . . Hacking Detections 2 | . 2 . . Full Trace Events 2 | . 2 . . Feedback Events . | . . . . Feedback Blocked . | . . . . Robot Schematics Acquired . | . . . . Robots Built . | . . . . Authchips . | . . . . Time . | . . . . Total Robot Build Rating . | . . . . Part Schematics Acquired . | . . . . Parts Built . | . . . . Authchips . | . . . . Time . | . . . . Total Part Build Rating . | . . . . Part Studies Acquired . | . . . . Parts Repaired . | . . . . Time . | . . . . Parts Recycled 3 | . 3 . . Recycled Matter 63 | . 63 . . Retrieved Matter 63 | . 63 . . Retrieved Components . | . . . . Parts Scanalyzed . | . . . . Part Schematics Acquired . | . . . . Parts Damaged . | . . . . Bothacking | -11 -10 -10 -10 ------------ Run | Yrd Mat Min Sub Used RIF Installer . | . . . . Robots Hacked . | . . . . Non-combat . | . . . . Combat . | . . . . Robot Hacks Applied . | . . . . Relay Couplers Released . | . . . . Fabnet Peak Effective % . | . . . . Robots Rewired . | . . . . Allies Hacked . | . . . . Hacks Repelled . | . . . . Allies | -11 -10 -10 -10 -------- Run | Yrd Mat Min Sub Total Allies . | . . . . Largest Group . | . . . . Highest-Rated Group . | . . . . Highest-Rated Ally . | . . . . Total Orders . | . . . . Ally Attacks . | . . . . Total Damage . | . . . . Kills . | . . . . Allies Corrupted . | . . . . Allies Melted . | . . . . Intel | -11 -10 -10 -10 ------- Run | Yrd Mat Min Sub Active Infowar (turns) 498 | . . 485 13 Sensors 414 | . . 401 13 ECM 84 | . . 84 . Robot Analysis Total . | . . . . Derelict Logs Recovered 2 | . . 1 1 Drone Launches . | . . . . Drone Recoveries . | . . . . Exploration | -11 -10 -10 -10 ------------- Run | Yrd Mat Min Sub Turns Passed 1589 | 113 246 1145 85 Spaces Moved 1039 | 81 201 700 57 Core 13 | 11 . . 2 Treads 386 | . . 357 29 Legs 640 | 70 201 343 26 Wheels . | . . . . Hover . | . . . . Flight . | . . . . Fastest Speed 50 | 50 120 120 120 Average Speed 135 | 121 120 140 143 Slowest Speed 250 | 190 120 160 250 Overloaded Moves . | . . . . Propulsion Burnouts . | . . . . Robots Hopped . | . . . . Potential Cave-ins . | . . . . Cave-ins Triggered . | . . . . Exploration Rate (%) 27 | 5 28 72 5 Regions Visited 3 Branch Regions 2 Pre-discovered Areas . | . . . . Known Exits Taken . | . . . . Unknown Exits Taken 3 | 1 1 1 . Scrap Searched 1 | . . 1 . Spaces Dug . | . . . . Terrain Destroyed 25 | . . 25 . Melee . | . . . . Projectile . | . . . . AOE 25 | . . 25 . Terrain Rammed . | . . . . Walls Destroyed . | . . . . Machines Disabled . | . . . . Actions | -11 -10 -10 -10 --------- Run | Yrd Mat Min Sub Total 1152 | 92 205 794 61 Wait 20 | . . 20 . Move 1036 | 80 200 699 57 Hop . | . . . . Pick Up 18 | 6 2 10 . Fast Attach 11 | 6 1 4 . Attach 9 | . . 5 4 Detach . | . . . . Swap 2 | . . 2 . Drop 6 | . . 6 . Fire 40 | . . 40 . Melee . | . . . . Ram . | . . . . Kick 5 | . 2 3 . Crush 5 | . . 5 . Escape Stasis . | . . . . Rewire . | . . . . Trap . | . . . . Miscellaneous . | . . . . Route ------- -11/Scrapyard -10/Materials -10/Mines (discovered 2 exits: [*Mat] / [*Sub]) -10/Subcaves (discovered 1 exit: *Mat) History --------- Turn | Location | Event 4 | -11/Scrapyard | Discovered new exit (range 15) 114 | -11/Scrapyard | Entered Materials 308 | -10/Materials | Build established: Mutant 341 | -10/Materials | Discovered new exit (range 14) 360 | -10/Materials | Entered Mines 626 | -10/Mines | Received a Rocket Launcher from a helpful Derelict 634 | -10/Mines | Discovered new exit (range 11) 1098 | -10/Mines | Found a damaged Exp. Sensor Array with a note attached 1104 | -10/Mines | Found Prototype Device 1104 | -10/Mines | Identified Exp. Sensor Array 1141 | -10/Mines | Learned location of 1 exit from Materials 1327 | -10/Mines | Core integrity fell below 50% 1493 | -10/Mines | Discovered new exit (range 5) 1505 | -10/Mines | Entered Subcaves 1506 | -10/Subcaves | Approached by a straggling Scientist 1508 | -10/Subcaves | Shifting Twisted Machinery released Mak. Light Armor Plating 1512 | -10/Subcaves | Identified exit to Materials 1519 | -10/Subcaves | Shifting Twisted Machinery released Battle Rifle 1551 | -10/Subcaves | Core integrity fell below 20% 1590 | -10/Subcaves | Destroyed by TE-OKB(R) with Subdweller Machine Gun Last Messages --------------- Twisted Machinery. 01509_ 7W-EIR(c): "Hey, let me tag along and I can get us both out of this nasty situation. At least I think I can... The group I got separated from was talking about a shortcut back to the UFD." 01512_ Acquired derelict log, extracted data. Loading 1 Subcaves exit... 01518_ Exp. Sensor Array destroyed. Battle Rifle falls loose from the Twisted Machinery. 01549_ Lgt. Treads destroyed. 01554_ Rocket Launcher destroyed. 01558_ Lgt. Ion Engine destroyed. 01567_ Subatomizers dissect the Machine Analyzer. 01568_ Aluminum Leg destroyed. 01569_ Assault Rifle destroyed. 01569_ Acquired 8 matter. 01589_ Aluminum Leg destroyed. Map ----- +----------------------------------------------------+ | ?????????????????????????????????????????????????? | | ?????????????????????????????????????????????????? | | ?????????????????????????????????????????????????? | | ?????????????????????????????????????????????????? | | ?????????????????????????????????????????????????? | | ?????????????????????????????????????????????????? | | ?????????????????????????????????????????????????? | | ?????????????????????????????????????????????????? | | ?????????????????????????????????????????????????? | | ?????????????????????????????????????????????????? | | ?????????????????????????????????????????????????? | | ?????????????????????????????????????????????????? | | ?????????????????????????????????????????????????? | | ?????????????????????????????????????????????????? | | ?????????????????????????????????????????????????? | | ??????????????????????????????????????##?????????? | | ?????????????????????????????????????? #?????????? | | ?????????????????????????????????????# #?????????? | | ??????????????????????????#?????????# #?????????? | | ??????????????????????????# ?????### #?????????? | | ???????????? ## ???#?????## ????# ##????????? | | ????????????# ??# ????# #???# "#????????? | | ????????????# ## ???# #??# ""###??????? | | ????????????# #??? ### " ##?????? | | ????????????????# ####? ## "#?????? | | ?????????????????# < @#??# "??????? | | ?????????????????## R #??# ????????? | | ??????????????????# R #???# % % ??????????? | | ??????????????????# ## #???? #" #???????????? | | ??????????????????#### # ##??? ## ##??????????? | | ?????????????????????#?# #### ### #??????#???? | | ???????????????????????##R ## #?# ##???? #???? | | ???????????????????????# R### #?# #?#" #???? | | ???????????????????????## #?## ###" ##???? | | ???????????????????????# ### #### ##" #???? | | ???????????????????????##??# #?# " " #????? | | ???????????????????????????###!##### " #????? | | ?????????????????????????????# ## # #????? | | ???????????????????????????### #????? | | ???????????????????????????# !"""##????? | | ???????????????????????????# # ### ##"###?????? | | ???????????????????????????# ###? #?##???????? | | ??????????????????????????# #???" ?????????? | | ?????????????????????????# ##?? "" ????????? | | ?????????????????????????# ???? "" ??????? | | ?????????????????????????## ??? # """ ?????? | | ?????????????????????????? # ??? ##""""" ????? | | ?????????????????????????## ?? #??# "[ ???? | | ??????????????????????????# #?? ?????? ? ???? | | ??????????????????????????"# ?????????????? #???? | +----------------------------------------------------+ Best States ------------- Heat Dissipation 39 Energy Generation 10 Energy Capacity 125 Matter Stores 300 Matter Capacity 300 Sight Range 16 Robot Scan Range 20 Terrain Scan Density 10 ECM Strength 1 Evasion (%) 55 Recoil Reduction 2 Item Schematics ----------------- None Robot Schematics ------------------ None Fabricated ------------ Nothing Repaired ---------- Nothing Studied --------- None Alien Tech Used ----------------- None Achievements -------------- None Challenges ------------ None Game ------ Seed TitaniumIntegratedThrower Manual? 0 Play Time 00:15:57 Cumulative 4.4 hours Start 2025.12.11 @ 02:54:32 End 2025.12.11 @ 03:25:51 Sessions 1 Manual Loads 0 Difficulty Rogue Special Mode None Game No. 8 Rogue 8 Adventurer 0 Explorer 0 Win Type - Total 0 Types 0/0/0/0/0/0/0/0/0/0 Lore% 6 Gallery% 7 Achievement% 9 Wizard Run 0 Options --------- Layout 1 ASCII 0 Keyboard 0 Movement Vi Keybinds 0 Fullscreen 1 Font 24/Cog Map View 50x40 Zoom Use 0% Tactical HUD 1 Map Filters NONE Filters NONE Steam 1 RUN: a33aee3c-9bdd-4d61-91b3-46a488d4aa14